[Event "*** Titled Tuesday Blitz"]
[Site "Chess.com"]
[Date "2018.09.04"]
[Round "7"]
[White "Bryakin_Mikhail"]
[Black "Winehouse83"]
[Result "1-0"]
[WhiteElo "2546"]
[BlackElo "2465"]
[TimeControl "180+2"]
[EndTime "15:11:04 PDT"]
[Termination "Bryakin_Mikhail won by resignation"]

1. d4 {[%clk 0:02:48.8]} 1... Nf6 {[%clk 0:03:00.5]} 2. c4 {[%clk 0:02:49.2]}
2... g6 {[%clk 0:03:01.8]} 3. Nc3 {[%clk 0:02:49.9]} 3... Bg7 {[%clk 0:03:03]}
4. e4 {[%clk 0:02:51.2]} 4... d6 {[%clk 0:03:04.6]} 5. h3 {[%clk 0:02:52.3]}
5... O-O {[%clk 0:03:04.9]} 6. Be3 {[%clk 0:02:53.4]} 6... c5 {[%clk 0:02:55.2]}
7. Nf3 {[%clk 0:02:50.4]} 7... Qa5 {[%clk 0:02:45.3]} 8. Bd3 {[%clk 0:02:47.5]}
8... Nc6 {[%clk 0:02:42.7]} 9. O-O {[%clk 0:02:36.6]} 9... cxd4 {[%clk
0:02:26.9]} 10. Nxd4 {[%clk 0:02:34.7]} 10... Nxd4 {[%clk 0:02:22.7]} 11. Bxd4
{[%clk 0:02:35.1]} 11... Be6 {[%clk 0:02:23.5]} 12. b3 {[%clk 0:02:26.2]} 12...
Nd7 {[%clk 0:02:21.1]} 13. Be2 {[%clk 0:02:15.3]} 13... Bxd4 {[%clk 0:02:07.7]}
14. Qxd4 {[%clk 0:02:17.2]} 14... Qc5 {[%clk 0:02:05.1]} 15. Qd2 {[%clk
0:02:05.4]} 15... a6 {[%clk 0:02:02.2]} 16. Kh1 {[%clk 0:02:00.6]} 16... Nf6
{[%clk 0:02:01.1]} 17. f4 {[%clk 0:01:47.7]} 17... b5 {[%clk 0:01:56.1]} 18. f5
{[%clk 0:01:48.3]} 18... b4 {[%clk 0:01:45]} 19. Nd5 {[%clk 0:00:46.5]} 19...
Bxd5 {[%clk 0:01:22.3]} 20. exd5 {[%clk 0:00:43]} 20... Kh8 {[%clk 0:01:09.8]}
21. Rf4 {[%clk 0:00:37.9]} 21... Rg8 {[%clk 0:00:59.2]} 22. Raf1 {[%clk
0:00:34.9]} 22... gxf5 {[%clk 0:00:58.1]} 23. Qb2 {[%clk 0:00:15.6]} 23... Rg7
{[%clk 0:00:51]} 24. Rxf5 {[%clk 0:00:16.4]} 24... Ne4 {[%clk 0:00:50.5]} 25.
R1f3 {[%clk 0:00:08.2]} 25... f6 {[%clk 0:00:40.9]} 26. g4 {[%clk 0:00:09]}
26... a5 {[%clk 0:00:33.7]} 27. Kg2 {[%clk 0:00:07.3]} 27... a4 {[%clk
0:00:33.8]} 28. bxa4 {[%clk 0:00:05.2]} 28... Rxa4 {[%clk 0:00:34.4]} 29. Rb3
{[%clk 0:00:03.5]} 29... Nc3 {[%clk 0:00:28.1]} 30. a3 {[%clk 0:00:04.9]} 30...
Nxe2 {[%clk 0:00:19.5]} 31. Qxe2 {[%clk 0:00:06.8]} 31... Rxa3 {[%clk
0:00:20.2]} 32. Rff3 {[%clk 0:00:08.1]} 32... Qa5 {[%clk 0:00:18.9]} 33. Kg3
{[%clk 0:00:08.4]} 33... Ra2 {[%clk 0:00:19.6]} 34. Qe6 {[%clk 0:00:08.8]} 34...
Qc5 {[%clk 0:00:17.4]} 35. Qe4 {[%clk 0:00:07.2]} 35... Qg1+ {[%clk 0:00:17.6]}
36. Kh4 {[%clk 0:00:08.3]} 36... Qc1 {[%clk 0:00:18]} 37. Rbe3 {[%clk
0:00:07.5]} 37... b3 {[%clk 0:00:17.4]} 38. Qf5 {[%clk 0:00:08.1]} 38... b2
{[%clk 0:00:17.2]} 39. Rb3 {[%clk 0:00:08.5]} 39... Qh6+ {[%clk 0:00:16.7]} 40.
Kg3 {[%clk 0:00:09]} 40... Qc1 {[%clk 0:00:15.6]} 41. Rb8+ {[%clk 0:00:07.8]}
41... Rg8 {[%clk 0:00:15.8]} 42. Rb7 {[%clk 0:00:08.9]} 42... Qe1+ {[%clk
0:00:15.3]} 43. Kf4 {[%clk 0:00:06.4]} 43... b1=Q {[%clk 0:00:16.3]} 44. Rxb1
{[%clk 0:00:06.3]} 44... Qd2+ {[%clk 0:00:16.6]} 45. Kg3 {[%clk 0:00:06.1]}
45... Qh2+ {[%clk 0:00:17.5]} 46. Kh4 {[%clk 0:00:07.3]} 46... Re2 {[%clk
0:00:18.1]} 47. Rbf1 {[%clk 0:00:04.6]} 47... Re5 {[%clk 0:00:19]} 48. Qf4
{[%clk 0:00:05.2]} 48... Qc2 {[%clk 0:00:19]} 49. Re3 {[%clk 0:00:03.5]} 49...
h5 {[%clk 0:00:19.5]} 50. Rxe5 {[%clk 0:00:03.7]} 50... dxe5 {[%clk 0:00:21.1]}
51. Qh6+ {[%clk 0:00:05]} 51... Qh7 {[%clk 0:00:22.7]} 52. Qxh5 {[%clk
0:00:06.2]} 52... Rc8 {[%clk 0:00:20.5]} 53. Qxh7+ {[%clk 0:00:06.7]} 53... Kxh7
{[%clk 0:00:21.8]} 54. Rc1 {[%clk 0:00:08.6]} 54... Rc5 {[%clk 0:00:21.9]} 55.
Kg3 {[%clk 0:00:09.9]} 55... Kh6 {[%clk 0:00:23.5]} 56. h4 {[%clk 0:00:11.1]}
56... Kg6 {[%clk 0:00:25]} 57. Kf3 {[%clk 0:00:12.1]} 57... f5 {[%clk
0:00:24.5]} 58. gxf5+ {[%clk 0:00:13.1]} 58... Kxf5 {[%clk 0:00:26.4]} 59. Ke3
{[%clk 0:00:15]} 59... e4 {[%clk 0:00:21.3]} 60. Kd4 {[%clk 0:00:14.9]} 60...
Rc8 {[%clk 0:00:21.3]} 61. Rf1+ {[%clk 0:00:16.2]} 61... Kg4 {[%clk 0:00:21.9]}
62. Re1 {[%clk 0:00:17.6]} 62... Kxh4 {[%clk 0:00:22.3]} 63. Rxe4+ {[%clk
0:00:18.8]} 63... Kg5 {[%clk 0:00:23.8]} 64. Rxe7 {[%clk 0:00:20.7]} 64... Kf6
{[%clk 0:00:25]} 65. Re1 {[%clk 0:00:21.9]} 1-0

[Event "*** Titled Tuesday Blitz"]
[Site "Chess.com"]
[Date "2018.09.04"]
[Round "7"]
[White "joejan"]
[Black "r31415"]
[Result "1-0"]
[WhiteElo "2233"]
[BlackElo "2373"]
[TimeControl "180+2"]
[EndTime "15:11:07 PDT"]
[Termination "joejan won by resignation"]

1. e4 {[%clk 0:03:01.9]} 1... d6 {[%clk 0:03:00.8]} 2. d4 {[%clk 0:03:01.8]}
2... Nf6 {[%clk 0:03:02.4]} 3. Nc3 {[%clk 0:03:02.6]} 3... g6 {[%clk 0:03:03.7]}
4. Bc4 {[%clk 0:02:59.9]} 4... Bg7 {[%clk 0:03:04.4]} 5. Qe2 {[%clk 0:03:00.7]}
5... Nc6 {[%clk 0:03:04.7]} 6. e5 {[%clk 0:03:01.8]} 6... Nxd4 {[%clk
0:03:06.2]} 7. exf6 {[%clk 0:03:02.2]} 7... Nxe2 {[%clk 0:03:07.8]} 8. fxg7
{[%clk 0:03:03.3]} 8... Rg8 {[%clk 0:03:09.4]} 9. Ngxe2 {[%clk 0:03:04.3]} 9...
Rxg7 {[%clk 0:03:11]} 10. Bh6 {[%clk 0:03:05.4]} 10... Rg8 {[%clk 0:03:12.6]}
11. O-O-O {[%clk 0:03:06.3]} 11... c6 {[%clk 0:03:14.1]} 12. Rhe1 {[%clk
0:03:05.3]} 12... g5 {[%clk 0:03:01.3]} 13. f4 {[%clk 0:02:59.5]} 13... g4
{[%clk 0:02:44.9]} 14. Ng3 {[%clk 0:02:48.2]} 14... d5 {[%clk 0:02:09]} 15. f5
{[%clk 0:02:42]} 15... Qd6 {[%clk 0:02:03.6]} 16. Be3 {[%clk 0:02:24.8]} 16...
h5 {[%clk 0:01:59.2]} 17. Nce4 {[%clk 0:02:15.7]} 17... Qd7 {[%clk 0:01:04.9]}
18. Bc5 {[%clk 0:02:01.4]} 18... Kd8 {[%clk 0:01:02]} 19. f6 {[%clk 0:01:56]}
19... e6 {[%clk 0:00:48.2]} 20. Be7+ {[%clk 0:01:33.8]} 20... Kc7 {[%clk
0:00:48.7]} 21. Nd6 {[%clk 0:01:25.5]} 21... dxc4 {[%clk 0:00:29.1]} 22. Nxc4
{[%clk 0:01:25.7]} 22... Rg5 {[%clk 0:00:09.9]} 23. Rxd7+ {[%clk 0:01:20.4]}
23... Bxd7 {[%clk 0:00:11]} 24. Ne4 {[%clk 0:01:15.7]} 24... Rg6 {[%clk
0:00:06.3]} 25. Ne5 {[%clk 0:01:12]} 25... Rh6 {[%clk 0:00:07.5]} 26. Nxf7
{[%clk 0:01:10.6]} 26... Rh7 {[%clk 0:00:06.7]} 27. Ne5 {[%clk 0:01:10.5]} 27...
Be8 {[%clk 0:00:06.8]} 28. Bd6+ {[%clk 0:01:07.2]} 28... Kb6 {[%clk 0:00:07]}
29. Re3 {[%clk 0:01:05.8]} 29... a5 {[%clk 0:00:03.4]} 30. Rb3+ {[%clk
0:01:00.9]} 30... Ka6 {[%clk 0:00:04.6]} 31. Nc5+ {[%clk 0:01:00.1]} 31... Ka7
{[%clk 0:00:06]} 32. f7 {[%clk 0:00:59.9]} 32... Rxf7 {[%clk 0:00:02.8]} 33.
Nxf7 {[%clk 0:01:00.4]} 33... b6 {[%clk 0:00:04.7]} 34. Ne5 {[%clk 0:00:46]}
34... bxc5 {[%clk 0:00:06]} 35. Bxc5+ {[%clk 0:00:46.6]} 35... Ka6 {[%clk
0:00:07.9]} 36. Rb6+ {[%clk 0:00:45.2]} 36... Ka7 {[%clk 0:00:09.4]} 37. Rxc6+
{[%clk 0:00:32.2]} 37... Kb7 {[%clk 0:00:09.5]} 38. Rxe6 {[%clk 0:00:33.1]}
38... Bb5 {[%clk 0:00:06.9]} 39. Re7+ {[%clk 0:00:31.7]} 39... Kc8 {[%clk
0:00:08.2]} 40. c4 {[%clk 0:00:31.4]} 40... Ba4 {[%clk 0:00:08.6]} 41. b3 {[%clk
0:00:31.5]} 41... Kd8 {[%clk 0:00:04.9]} 42. bxa4 {[%clk 0:00:30.5]} 42... Ra6
{[%clk 0:00:06.3]} 43. Nf7+ {[%clk 0:00:29.9]} 43... Kc8 {[%clk 0:00:07.7]} 44.
Nd6+ {[%clk 0:00:23.5]} 44... Kd8 {[%clk 0:00:07.1]} 45. Ne4 {[%clk 0:00:18.3]}
45... h4 {[%clk 0:00:05.6]} 46. Re5 {[%clk 0:00:18.6]} 46... h3 {[%clk
0:00:06.1]} 47. gxh3 {[%clk 0:00:18.7]} 47... gxh3 {[%clk 0:00:08]} 48. Kc2
{[%clk 0:00:19.6]} 48... Rg6 {[%clk 0:00:08.9]} 49. Ng3 {[%clk 0:00:18.4]} 49...
Kd7 {[%clk 0:00:07.7]} 50. Kc3 {[%clk 0:00:18.7]} 50... Rf6 {[%clk 0:00:07.7]}
51. Be3 {[%clk 0:00:17.8]} 51... Kc8 {[%clk 0:00:03.3]} 52. Rc5+ {[%clk
0:00:17.6]} 52... Kb7 {[%clk 0:00:03.2]} 53. Rxa5 {[%clk 0:00:19.2]} 53... Rd6
{[%clk 0:00:04.6]} 54. Re5 {[%clk 0:00:20]} 54... Rd1 {[%clk 0:00:05.3]} 55. Rh5
{[%clk 0:00:20.7]} 55... Ra1 {[%clk 0:00:05.1]} 56. Rxh3 {[%clk 0:00:20.9]}
56... Rxa2 {[%clk 0:00:06.6]} 57. Kb4 {[%clk 0:00:21.9]} 57... Rb2+ {[%clk
0:00:07.7]} 58. Kc5 {[%clk 0:00:22.8]} 58... Rb3 {[%clk 0:00:09.2]} 59. Rh7+
{[%clk 0:00:23.1]} 59... Ka8 {[%clk 0:00:09.5]} 60. Bf4 {[%clk 0:00:23.4]} 60...
Rb5+ {[%clk 0:00:07.8]} 61. Kd4 {[%clk 0:00:24]} 61... Rd5+ {[%clk 0:00:08.7]}
62. Ke3 {[%clk 0:00:24.9]} 62... Rd3+ {[%clk 0:00:09.6]} 63. Ke2 {[%clk
0:00:26]} 63... Rxg3 {[%clk 0:00:06.9]} 64. Rh8+ {[%clk 0:00:26.7]} 1-0

[Event "*** Titled Tuesday Blitz"]
[Site "Chess.com"]
[Date "2018.09.04"]
[Round "7"]
[White "Arash_Tahbaz"]
[Black "nihalsarin"]
[Result "1-0"]
[WhiteElo "2763"]
[BlackElo "2853"]
[TimeControl "180+2"]
[EndTime "15:11:28 PDT"]
[Termination "Arash_Tahbaz won by resignation"]

1. c4 {[%clk 0:03:01.9]} 1... Nf6 {[%clk 0:02:59.8]} 2. Nc3 {[%clk 0:03:02.3]}
2... e6 {[%clk 0:03:01.3]} 3. d4 {[%clk 0:03:02.8]} 3... Bb4 {[%clk 0:03:01]} 4.
Qc2 {[%clk 0:03:01.1]} 4... d5 {[%clk 0:02:59.2]} 5. Nf3 {[%clk 0:03:01.5]} 5...
dxc4 {[%clk 0:02:57.7]} 6. e4 {[%clk 0:03:00.4]} 6... b5 {[%clk 0:02:52.8]} 7.
e5 {[%clk 0:02:55.8]} 7... Nd5 {[%clk 0:02:52.7]} 8. a4 {[%clk 0:02:57.3]} 8...
c6 {[%clk 0:02:53.5]} 9. Bd2 {[%clk 0:02:55.1]} 9... Bxc3 {[%clk 0:02:53.5]} 10.
bxc3 {[%clk 0:02:55.2]} 10... h6 {[%clk 0:02:52.3]} 11. Be2 {[%clk 0:02:44.3]}
11... Nd7 {[%clk 0:02:51.4]} 12. h4 {[%clk 0:02:39.7]} 12... a6 {[%clk
0:02:50.4]} 13. Rh3 {[%clk 0:02:37.1]} 13... g6 {[%clk 0:02:31]} 14. Rg3 {[%clk
0:02:33.2]} 14... Qe7 {[%clk 0:02:27.4]} 15. Kf1 {[%clk 0:02:33.3]} 15... Bb7
{[%clk 0:02:27.1]} 16. Qc1 {[%clk 0:02:27.4]} 16... g5 {[%clk 0:01:50.5]} 17.
hxg5 {[%clk 0:02:19.9]} 17... hxg5 {[%clk 0:01:52.4]} 18. Kg1 {[%clk 0:02:20]}
18... O-O-O {[%clk 0:01:26]} 19. Bxg5 {[%clk 0:02:18.4]} 19... f6 {[%clk
0:01:27.2]} 20. exf6 {[%clk 0:02:16.8]} 20... N7xf6 {[%clk 0:01:29.1]} 21. Ne5
{[%clk 0:02:12]} 21... Rdg8 {[%clk 0:01:26.3]} 22. Bf3 {[%clk 0:01:56.8]} 22...
Qh7 {[%clk 0:00:47.6]} 23. Rh3 {[%clk 0:01:54.1]} 23... Qg7 {[%clk 0:00:47.4]}
24. Bh6 {[%clk 0:01:47.8]} 24... Qe7 {[%clk 0:00:44.5]} 25. Kf1 {[%clk 0:01:32]}
25... Nd7 {[%clk 0:00:28.4]} 26. axb5 {[%clk 0:01:25.8]} 26... cxb5 {[%clk
0:00:25.8]} 27. Nxd7 {[%clk 0:01:24.2]} 27... Qxd7 {[%clk 0:00:25.9]} 28. Qd2
{[%clk 0:01:20.8]} 28... Rg6 {[%clk 0:00:24.3]} 29. Be4 {[%clk 0:01:17.3]} 29...
Rf6 {[%clk 0:00:23.2]} 30. Bg5 {[%clk 0:01:16.2]} 30... Rxh3 {[%clk 0:00:22.7]}
31. gxh3 {[%clk 0:01:18.1]} 31... Rf8 {[%clk 0:00:23.9]} 32. h4 {[%clk
0:01:17.7]} 32... Qf7 {[%clk 0:00:22.7]} 33. Bh6 {[%clk 0:01:13.1]} 33... Rh8
{[%clk 0:00:22.4]} 34. Bg5 {[%clk 0:01:07.4]} 34... Rf8 {[%clk 0:00:23.5]} 35.
Ra2 {[%clk 0:00:44.3]} 35... Nb6 {[%clk 0:00:20.1]} 36. d5 {[%clk 0:00:40.8]}
36... Nxd5 {[%clk 0:00:19.9]} 37. Qd4 {[%clk 0:00:41]} 37... Qc7 {[%clk
0:00:18.7]} 38. Bxd5 {[%clk 0:00:38.2]} 38... exd5 {[%clk 0:00:17.1]} 39. Re2
{[%clk 0:00:37.6]} 39... Bc6 {[%clk 0:00:11.7]} 40. Re7 {[%clk 0:00:35.7]} 40...
Bd7 {[%clk 0:00:13.1]} 41. Qxd5 {[%clk 0:00:32.5]} 41... Qc6 {[%clk 0:00:09.5]}
42. Rxd7 {[%clk 0:00:31.8]} 42... Qxd7 {[%clk 0:00:10.2]} 43. Qc5+ {[%clk
0:00:31.1]} 43... Kb7 {[%clk 0:00:10.5]} 44. Qxf8 {[%clk 0:00:21.3]} 44... Qd1+
{[%clk 0:00:12.4]} 45. Kg2 {[%clk 0:00:22.2]} 45... Qg4+ {[%clk 0:00:14.1]} 46.
Kh2 {[%clk 0:00:23.7]} 46... Qe2 {[%clk 0:00:15.2]} 47. Qf7+ {[%clk 0:00:22.7]}
47... Kb6 {[%clk 0:00:16.3]} 48. Qf6+ {[%clk 0:00:23]} 48... Ka5 {[%clk
0:00:17.7]} 49. Qd4 {[%clk 0:00:22.8]} 49... Ka4 {[%clk 0:00:19]} 50. Qe3 {[%clk
0:00:21.5]} 50... Qh5 {[%clk 0:00:19]} 51. f4 {[%clk 0:00:19.7]} 51... Kb3
{[%clk 0:00:20.2]} 52. f5 {[%clk 0:00:20.5]} 52... a5 {[%clk 0:00:21.8]} 53. f6
{[%clk 0:00:21.7]} 53... a4 {[%clk 0:00:23.3]} 54. Qf2 {[%clk 0:00:20.9]} 54...
Qf7 {[%clk 0:00:24.2]} 55. Qc5 {[%clk 0:00:20.9]} 55... Qh5 {[%clk 0:00:19.4]}
56. Qxb5+ {[%clk 0:00:18.3]} 56... Kc2 {[%clk 0:00:20.9]} 57. Qxc4 {[%clk
0:00:16.9]} 57... a3 {[%clk 0:00:21.2]} 58. Qa2+ {[%clk 0:00:15.6]} 58... Kd3
{[%clk 0:00:22.4]} 59. f7 {[%clk 0:00:15.2]} 59... Qf3 {[%clk 0:00:23.8]} 60.
Qd2+ {[%clk 0:00:14.3]} 60... Kc4 {[%clk 0:00:24.5]} 61. Qd4+ {[%clk 0:00:15.6]}
61... Kb3 {[%clk 0:00:25.4]} 62. Qb4+ {[%clk 0:00:10.7]} 62... Kc2 {[%clk
0:00:26.2]} 63. f8=Q {[%clk 0:00:12.2]} 63... Qe2+ {[%clk 0:00:26.3]} 64. Kg3
{[%clk 0:00:13.2]} 64... Qe5+ {[%clk 0:00:23.7]} 65. Qff4 {[%clk 0:00:13.8]}
65... Qe1+ {[%clk 0:00:24.8]} 66. Qf2+ {[%clk 0:00:15]} 66... Qxf2+ {[%clk
0:00:26.7]} 67. Kxf2 {[%clk 0:00:16.9]} 67... a2 {[%clk 0:00:28.6]} 68. Qa4+
{[%clk 0:00:17.2]} 1-0

[Event "*** Titled Tuesday Blitz"]
[Site "Chess.com"]
[Date "2018.09.04"]
[Round "7"]
[White "Ksenia_Legenko"]
[Black "arna"]
[Result "0-1"]
[WhiteElo "2048"]
[BlackElo "2105"]
[TimeControl "180+2"]
[EndTime "15:11:35 PDT"]
[Termination "arna won by resignation"]

1. d4 {[%clk 0:03:01.9]} 1... Nf6 {[%clk 0:02:50.7]} 2. c4 {[%clk 0:03:02.2]}
2... e6 {[%clk 0:02:48.6]} 3. g3 {[%clk 0:03:03.3]} 3... c5 {[%clk 0:02:46.7]}
4. Nf3 {[%clk 0:03:02.8]} 4... cxd4 {[%clk 0:02:44.9]} 5. Nxd4 {[%clk
0:03:03.4]} 5... Qa5+ {[%clk 0:02:27.5]} 6. Nc3 {[%clk 0:02:50.1]} 6... Ne4
{[%clk 0:02:24]} 7. Qc2 {[%clk 0:02:26.1]} 7... Nxc3 {[%clk 0:02:21.5]} 8. bxc3
{[%clk 0:02:26.3]} 8... Nc6 {[%clk 0:02:04.1]} 9. Nb3 {[%clk 0:02:22.8]} 9...
Qa4 {[%clk 0:01:46.7]} 10. c5 {[%clk 0:02:01.9]} 10... Bxc5 {[%clk 0:01:41.3]}
11. Bg2 {[%clk 0:02:03]} 11... O-O {[%clk 0:01:32.6]} 12. O-O {[%clk 0:02:03.5]}
12... d5 {[%clk 0:01:31.3]} 13. Rd1 {[%clk 0:01:57.3]} 13... Na5 {[%clk
0:01:10.9]} 14. Rb1 {[%clk 0:01:47.1]} 14... Nc4 {[%clk 0:01:06.6]} 15. e4
{[%clk 0:01:39.2]} 15... Nb6 {[%clk 0:00:29.7]} 16. exd5 {[%clk 0:01:36.6]}
16... exd5 {[%clk 0:00:30.8]} 17. Bxd5 {[%clk 0:01:29.6]} 17... Nxd5 {[%clk
0:00:29.3]} 18. Rxd5 {[%clk 0:01:30]} 18... Bb6 {[%clk 0:00:28.9]} 19. Bf4
{[%clk 0:01:20.5]} 19... Be6 {[%clk 0:00:26.2]} 20. Rh5 {[%clk 0:01:19.2]} 20...
g6 {[%clk 0:00:24.1]} 21. Rh4 {[%clk 0:01:16.8]} 21... Bf5 {[%clk 0:00:17.7]}
22. Qb2 {[%clk 0:01:00.9]} 22... Bxb1 {[%clk 0:00:07.1]} 23. Bh6 {[%clk
0:01:01.5]} 23... Qd7 {[%clk 0:00:07.1]} 24. Qxb1 {[%clk 0:00:49]} 24... Rfe8
{[%clk 0:00:06.5]} 25. c4 {[%clk 0:00:47.9]} 25... f6 {[%clk 0:00:04.6]} 26. c5
{[%clk 0:00:47.1]} 26... Bc7 {[%clk 0:00:06]} 27. Rd4 {[%clk 0:00:46]} 27... Qe6
{[%clk 0:00:05.3]} 28. Kg2 {[%clk 0:00:32.6]} 28... Rad8 {[%clk 0:00:05.5]} 29.
Rxd8 {[%clk 0:00:21.5]} 29... Bxd8 {[%clk 0:00:07.4]} 30. Qb2 {[%clk 0:00:20.9]}
30... Qe5 {[%clk 0:00:07.3]} 31. Qa3 {[%clk 0:00:19.9]} 31... a6 {[%clk
0:00:06.9]} 32. c6 {[%clk 0:00:17.4]} 32... Qd5+ {[%clk 0:00:07.4]} 33. Kh3
{[%clk 0:00:17.7]} 33... Qe6+ {[%clk 0:00:07.5]} 34. Kg2 {[%clk 0:00:18.6]}
34... Qxc6+ {[%clk 0:00:08.2]} 35. Kh3 {[%clk 0:00:19.4]} 35... Be7 {[%clk
0:00:07.4]} 36. Qa5 {[%clk 0:00:19]} 36... Qe6+ {[%clk 0:00:06.8]} 37. Kg2
{[%clk 0:00:19.5]} 37... Rd8 {[%clk 0:00:06.5]} 38. Qc3 {[%clk 0:00:19]} 38...
Qc6+ {[%clk 0:00:05.9]} 39. Qxc6 {[%clk 0:00:19]} 39... bxc6 {[%clk 0:00:07.8]}
40. Be3 {[%clk 0:00:19.5]} 40... Kf7 {[%clk 0:00:07.9]} 41. Na5 {[%clk
0:00:20.1]} 41... Rc8 {[%clk 0:00:06.4]} 42. Kf3 {[%clk 0:00:20.9]} 42... c5
{[%clk 0:00:07.4]} 43. Ke4 {[%clk 0:00:21.9]} 43... Ke6 {[%clk 0:00:06.2]} 44.
Nb3 {[%clk 0:00:21.6]} 44... f5+ {[%clk 0:00:06]} 45. Kf3 {[%clk 0:00:21.7]}
45... Kd5 {[%clk 0:00:06]} 46. Ke2 {[%clk 0:00:21.2]} 46... Bf6 {[%clk
0:00:04.9]} 47. Kd2 {[%clk 0:00:20.5]} 47... c4 {[%clk 0:00:04.1]} 48. Na5
{[%clk 0:00:21.2]} 48... Rc7 {[%clk 0:00:04]} 49. Kc2 {[%clk 0:00:20.9]} 49...
Be5 {[%clk 0:00:03.9]} 50. Bb6 {[%clk 0:00:20.9]} 50... Rc8 {[%clk 0:00:03.6]}
51. Be3 {[%clk 0:00:20.8]} 51... Rb8 {[%clk 0:00:02.9]} 52. Bd2 {[%clk
0:00:17.4]} 52... Rb2+ {[%clk 0:00:03.5]} 53. Kc1 {[%clk 0:00:18]} 53... Rxa2
{[%clk 0:00:04.2]} 54. Nb7 {[%clk 0:00:17.9]} 54... Ra1+ {[%clk 0:00:04.1]} 55.
Kc2 {[%clk 0:00:18.7]} 55... Ra2+ {[%clk 0:00:04.9]} 56. Kc1 {[%clk 0:00:19.5]}
56... c3 {[%clk 0:00:05.4]} 57. Be3 {[%clk 0:00:19.7]} 57... Bf6 {[%clk
0:00:04.7]} 58. h4 {[%clk 0:00:17.3]} 58... Bd4 {[%clk 0:00:03.7]} 59. Bf4
{[%clk 0:00:16.9]} 59... Rxf2 {[%clk 0:00:03.8]} 60. Nd8 {[%clk 0:00:16.6]}
60... Ke4 {[%clk 0:00:04.5]} 61. Ne6 {[%clk 0:00:16.9]} 61... Be3+ {[%clk
0:00:04.3]} 62. Kd1 {[%clk 0:00:15.6]} 62... Bxf4 {[%clk 0:00:04.9]} 63. Nc5+
{[%clk 0:00:16.7]} 63... Kd5 {[%clk 0:00:05]} 64. gxf4 {[%clk 0:00:16.8]} 64...
Kxc5 {[%clk 0:00:05.4]} 65. Ke1 {[%clk 0:00:17.8]} 65... Rd2 {[%clk 0:00:05.9]}
0-1

[Event "*** Titled Tuesday Blitz"]
[Site "Chess.com"]
[Date "2018.09.04"]
[Round "7"]
[White "Aklanion"]
[Black "MFBerna"]
[Result "0-1"]
[WhiteElo "2153"]
[BlackElo "2369"]
[TimeControl "180+2"]
[EndTime "15:11:47 PDT"]
[Termination "MFBerna won by resignation"]

1. e4 {[%clk 0:03:01.9]} 1... c6 {[%clk 0:03:00.3]} 2. d4 {[%clk 0:03:00.9]}
2... d5 {[%clk 0:03:02.2]} 3. exd5 {[%clk 0:03:02.6]} 3... cxd5 {[%clk
0:03:03.9]} 4. c4 {[%clk 0:03:04.3]} 4... Nf6 {[%clk 0:03:04.7]} 5. Nc3 {[%clk
0:03:05.9]} 5... Nc6 {[%clk 0:03:02.9]} 6. Nf3 {[%clk 0:03:07.3]} 6... Be6
{[%clk 0:03:00]} 7. c5 {[%clk 0:03:01]} 7... Bg4 {[%clk 0:03:01]} 8. Bg5 {[%clk
0:03:00.3]} 8... e6 {[%clk 0:02:58.3]} 9. Bb5 {[%clk 0:02:44.9]} 9... Be7 {[%clk
0:02:59.1]} 10. Qa4 {[%clk 0:02:41.4]} 10... O-O {[%clk 0:02:53]} 11. Bxc6
{[%clk 0:02:28]} 11... Bxf3 {[%clk 0:02:50.5]} 12. gxf3 {[%clk 0:02:26.7]} 12...
bxc6 {[%clk 0:02:50.8]} 13. Qxc6 {[%clk 0:02:22.3]} 13... Rb8 {[%clk 0:02:49.9]}
14. b3 {[%clk 0:02:16.8]} 14... Qa5 {[%clk 0:02:47]} 15. Bd2 {[%clk 0:02:16.3]}
15... Qa3 {[%clk 0:02:36.6]} 16. O-O {[%clk 0:01:38.5]} 16... Qb2 {[%clk
0:02:17.3]} 17. Rfd1 {[%clk 0:01:32.1]} 17... Qc2 {[%clk 0:02:17.9]} 18. Qa6
{[%clk 0:01:26.1]} 18... Qf5 {[%clk 0:02:13.8]} 19. Qe2 {[%clk 0:01:18.7]} 19...
Bd8 {[%clk 0:02:07]} 20. Kh1 {[%clk 0:01:05.8]} 20... Bc7 {[%clk 0:01:58.2]} 21.
Rg1 {[%clk 0:01:05.7]} 21... Qh3 {[%clk 0:01:42.7]} 22. Rg2 {[%clk 0:01:02.1]}
22... g6 {[%clk 0:01:41.8]} 23. Nb5 {[%clk 0:00:53.7]} 23... Rxb5 {[%clk
0:01:33]} 24. Qxb5 {[%clk 0:00:50.9]} 24... Qxf3 {[%clk 0:01:34.4]} 25. Re1
{[%clk 0:00:46.8]} 25... Ne4 {[%clk 0:01:33.8]} 26. Qe2 {[%clk 0:00:41.5]} 26...
Qh3 {[%clk 0:01:24]} 27. Qe3 {[%clk 0:00:37.5]} 27... Qh4 {[%clk 0:01:13]} 28.
Kg1 {[%clk 0:00:33.6]} 28... Kg7 {[%clk 0:00:43]} 29. f3 {[%clk 0:00:33.8]}
29... Nxd2 {[%clk 0:00:35]} 30. Qxd2 {[%clk 0:00:34]} 30... Bf4 {[%clk
0:00:27.8]} 31. Qe2 {[%clk 0:00:28.5]} 31... h5 {[%clk 0:00:21.4]} 32. b4 {[%clk
0:00:19.2]} 32... Rb8 {[%clk 0:00:21.5]} 33. b5 {[%clk 0:00:18.5]} 33... Rxb5
{[%clk 0:00:20.3]} 34. Rd1 {[%clk 0:00:11.5]} 34... Rb4 {[%clk 0:00:19.4]} 35.
Qe1 {[%clk 0:00:08.3]} 35... Qxe1+ {[%clk 0:00:12.4]} 36. Rxe1 {[%clk
0:00:10.2]} 36... Rxd4 {[%clk 0:00:12.6]} 37. Rc2 {[%clk 0:00:11.8]} 37... Bc7
{[%clk 0:00:10.5]} 38. Re3 {[%clk 0:00:10.8]} 38... Kf6 {[%clk 0:00:11]} 39. Rb3
{[%clk 0:00:11.7]} 39... Ke7 {[%clk 0:00:10.5]} 40. Rb7 {[%clk 0:00:12.7]} 40...
Kd7 {[%clk 0:00:11.8]} 41. Rxa7 {[%clk 0:00:14.1]} 41... Rd1+ {[%clk 0:00:10.3]}
42. Kg2 {[%clk 0:00:15.2]} 42... d4 {[%clk 0:00:11.7]} 43. Ra3 {[%clk
0:00:09.5]} 43... Kc6 {[%clk 0:00:06.6]} 44. Kf2 {[%clk 0:00:04.8]} 44... d3
{[%clk 0:00:06.9]} 45. Rb2 {[%clk 0:00:05.1]} 45... Be5 {[%clk 0:00:07.1]} 46.
Rb6+ {[%clk 0:00:04.5]} 46... Kxc5 {[%clk 0:00:08]} 47. Rbb3 {[%clk 0:00:06]}
47... Bd4+ {[%clk 0:00:08.8]} 48. Kg3 {[%clk 0:00:05.6]} 48... Rg1+ {[%clk
0:00:09.6]} 49. Kf4 {[%clk 0:00:06.5]} 49... d2 {[%clk 0:00:06.9]} 50. Ra5+
{[%clk 0:00:06.1]} 50... Kc4 {[%clk 0:00:07]} 51. Ra4+ {[%clk 0:00:07]} 51...
Kc5 {[%clk 0:00:08]} 52. Ra5+ {[%clk 0:00:08.5]} 52... Kc6 {[%clk 0:00:07.3]}
53. Ra6+ {[%clk 0:00:09]} 53... Kd5 {[%clk 0:00:07.9]} 54. Ra5+ {[%clk
0:00:09.9]} 54... Kd6 {[%clk 0:00:08.8]} 55. Ra6+ {[%clk 0:00:07.4]} 55... Ke7
{[%clk 0:00:09.8]} 56. Rd3 {[%clk 0:00:07.4]} 56... e5+ {[%clk 0:00:10.3]} 57.
Ke4 {[%clk 0:00:08.2]} 57... d1=Q {[%clk 0:00:10.9]} 58. Rxd1 {[%clk 0:00:09.3]}
58... Rxd1 {[%clk 0:00:12.8]} 59. Ra7+ {[%clk 0:00:10.9]} 59... Ke6 {[%clk
0:00:13.7]} 60. Ra6+ {[%clk 0:00:11.7]} 60... Ke7 {[%clk 0:00:14.5]} 61. a4
{[%clk 0:00:12.5]} 61... Re1+ {[%clk 0:00:12.8]} 62. Kd5 {[%clk 0:00:12.6]}
62... Rf1 {[%clk 0:00:13.7]} 63. Ke4 {[%clk 0:00:13.4]} 63... f5+ {[%clk
0:00:14.3]} 64. Kd5 {[%clk 0:00:14.9]} 64... Rxf3 {[%clk 0:00:14.5]} 65. Rxg6
{[%clk 0:00:16.4]} 65... Ra3 {[%clk 0:00:12.6]} 66. Rg5 {[%clk 0:00:16.6]} 66...
f4 {[%clk 0:00:12.2]} 67. Rxh5 {[%clk 0:00:17.7]} 67... f3 {[%clk 0:00:13.4]}
68. Rf5 {[%clk 0:00:16.6]} 68... f2 {[%clk 0:00:14.4]} 69. h4 {[%clk 0:00:16.9]}
69... Rxa4 {[%clk 0:00:15.5]} 70. h5 {[%clk 0:00:18]} 70... Ra1 {[%clk
0:00:16.2]} 71. Rg5 {[%clk 0:00:13.1]} 71... f1=Q {[%clk 0:00:16.3]} 0-1